Body,Body Name,Date,TransNo,Amount � (Excl VAT),Supplier name,Description,Expense Area,Expense Type,Expense Code,
http://opendatacommunities.org/id/london-borough-council/sutton,London Borough of Sutton,22/05/2018,1257712,59.07 , TESCO STORES 5999,TESCO ORDER FOR SOCIAL CARE SUPPORT BREAKFAST - APPROVED BY JW 70.88,Peoples Services Directorate,Refreshments,F155,
http://opendatacommunities.org/id/london-borough-council/sutton,London Borough of Sutton,30/04/2018,1257712,(3.33), SAINSBURYS TO YOU 0052,GROCERY SHOP,Peoples Services Directorate,Provisions - General,F150,
http://opendatacommunities.org/id/london-borough-council/sutton,London Borough of Sutton,30/04/2018,1257712,120.08 , SAINSBURYS TO YOU 0052,GROCERY SHOP,Peoples Services Directorate,Provisions - General,F150,
http://opendatacommunities.org/id/london-borough-council/sutton,London Borough of Sutton,14/05/2018,1257712,108.96 , SAINSBURYS TO YOU 0052,GROCERY SHOP,Peoples Services Directorate,Refreshments,F155,
http://opendatacommunities.org/id/london-borough-council/sutton,London Borough of Sutton,14/05/2018,1257712,52.50 , OXYGEN FREEJUMPING,63.00 - F620 0041 9999 - OXYGEN FREEJUMPING.PDF,Peoples Services Directorate,Miscellaneous Expenses,F620,
http://opendatacommunities.org/id/london-borough-council/sutton,London Borough of Sutton,30/04/2018,1257712,150.50 , TVLICENSING.CO.UK,TV LICENCE APPLICATION FOR MR B MOHAMED - 30.04.2018,Peoples Services Directorate,Personal Requisites,F106,
http://opendatacommunities.org/id/london-borough-council/sutton,London Borough of Sutton,26/04/2018,1257712,344.12 , WWW.ARGOS.CO.UK,SOFA FOR A LEAVING CARE CLIENT,Peoples Services Directorate,Personal Requisites,F106,
http://opendatacommunities.org/id/london-borough-council/sutton,London Borough of Sutton,24/05/2018,1257712,5.16 , TESCO STORE 2463,KB CROWN COURT LUNCH,Peoples Services Directorate,Personal Requisites,F106,
http://opendatacommunities.org/id/london-borough-council/sutton,London Borough of Sutton,23/05/2018,1257712,3.29 , TESCO STORE 2463,KB CROWN COURT LUNCH,Peoples Services Directorate,Personal Requisites,F106,
http://opendatacommunities.org/id/london-borough-council/sutton,London Borough of Sutton,22/05/2018,1257712,3.12 , TESCO STORE 2463,KB CROWN COURT LUNCH,Peoples Services Directorate,Personal Requisites,F106,
http://opendatacommunities.org/id/london-borough-council/sutton,London Borough of Sutton,21/05/2018,1257712,14.17 , IZ  BAUDOUIN LIMITED,KB CROWN COURT LUNCH,Peoples Services Directorate,Personal Requisites,F106,
http://opendatacommunities.org/id/london-borough-council/sutton,London Borough of Sutton,16/05/2018,1257712,16.50 , NANDOS ELEPHANT & CAST,KB CROWN COURT,Peoples Services Directorate,Personal Requisites,F106,
http://opendatacommunities.org/id/london-borough-council/sutton,London Borough of Sutton,22/05/2018,1257712,202.07 , SUTTON APPLIANCES,WASHING MACHINE FOR LENHAM ROAD PROPERTY,Peoples Services Directorate,Personal Requisites,F106,
http://opendatacommunities.org/id/london-borough-council/sutton,London Borough of Sutton,16/05/2018,1257712,(20.80), LIVERPOOL CITY COUNCIL,BIRTH CERTIFICATE REFUND,Peoples Services Directorate,Payments Under the Child Care Act 1980,H210,
http://opendatacommunities.org/id/london-borough-council/sutton,London Borough of Sutton,14/05/2018,1257712,20.80 , LIVERPOOL CITY COUNCIL,BIRTH CERT,Peoples Services Directorate,Payments Under the Child Care Act 1980,H210,
http://opendatacommunities.org/id/london-borough-council/sutton,London Borough of Sutton,14/05/2018,1257712,133.33 , WM MORRISONS,SPLIT - H213 0304 9999 (16.67%),Peoples Services Directorate,C.C.A Food & Clothing,H213,
http://opendatacommunities.org/id/london-borough-council/sutton,London Borough of Sutton,17/05/2018,1257712,319.99 , WWW.ABAKUSDIRECT.CO.UK,LAC - SET UP - SOFA,Peoples Services Directorate,Set Up Costs - Children Leaving Care,H336,
http://opendatacommunities.org/id/london-borough-council/sutton,London Borough of Sutton,18/05/2018,1257712,19.79 , DUNELM LTD,MA SETTING UP,Peoples Services Directorate,Set Up Costs - Children Leaving Care,H336,
http://opendatacommunities.org/id/london-borough-council/sutton,London Borough of Sutton,08/05/2018,1257712,166.67 , BRITISH HEART FOUNDATI,MA SETTING UP,Peoples Services Directorate,Set Up Costs - Children Leaving Care,H336,
http://opendatacommunities.org/id/london-borough-council/sutton,London Borough of Sutton,03/05/2018,1257712,710.00 , SUTTON APPLIANCES,AES SETTING UP,Peoples Services Directorate,Set Up Costs - Children Leaving Care,H336,
http://opendatacommunities.org/id/london-borough-council/sutton,London Borough of Sutton,30/04/2018,1257712,49.00 , WILKO.COM,SETTING UP ITEMS LCT,Peoples Services Directorate,Set Up Costs - Children Leaving Care,H336,
http://opendatacommunities.org/id/london-borough-council/sutton,London Borough of Sutton,15/05/2018,1257712,204.75 , POST OFFICE COUNTER,PASSPORT APPLICATIONS X3,Peoples Services Directorate,Personal Requisites,F106,
http://opendatacommunities.org/id/london-borough-council/sutton,London Borough of Sutton,30/04/2018,1257712,179.25 , TRAVELODGE,EMERGENCY ACCOMMODATION,Peoples Services Directorate,Provisions - General,F150,
http://opendatacommunities.org/id/london-borough-council/sutton,London Borough of Sutton,14/05/2018,1257712,133.33 , WM MORRISONS,SPLIT - H213 0310 9999 (16.67%),Peoples Services Directorate,C.C.A Food & Clothing,H213,
http://opendatacommunities.org/id/london-borough-council/sutton,London Borough of Sutton,03/05/2018,1257712,16.50 , WWW.WIGHTLINK.CO.UK,WIGHTLINK FERRY,Peoples Services Directorate,Travelling and Subsistence Allowances,A530,
http://opendatacommunities.org/id/london-borough-council/sutton,London Borough of Sutton,17/05/2018,1257712,18.50 , GRO HM PASSPORT OFFICE,BIRTH CERT,Peoples Services Directorate,Personal Requisites,F106,
http://opendatacommunities.org/id/london-borough-council/sutton,London Borough of Sutton,15/05/2018,1257712,127.00 , HM PASSPORT,PASSPORT APPLICATIONS,Peoples Services Directorate,Personal Requisites,F106,
http://opendatacommunities.org/id/london-borough-council/sutton,London Borough of Sutton,26/04/2018,1257712,9.25 , GRO HM PASSPORT OFFICE,PASSPORT OFFICE,Peoples Services Directorate,Personal Requisites,F106,
http://opendatacommunities.org/id/london-borough-council/sutton,London Borough of Sutton,26/04/2018,1257712,11.00 , BROMLEY COUNCIL -INT,BIRTH CERTIFICATE BROMLEY COUNCIL,Peoples Services Directorate,Personal Requisites,F106,
http://opendatacommunities.org/id/london-borough-council/sutton,London Borough of Sutton,26/04/2018,1257712,12.00 , LB CROYDON,BIRTH CERTIFICATE CROYDON COUNCIL,Peoples Services Directorate,Personal Requisites,F106,
http://opendatacommunities.org/id/london-borough-council/sutton,London Borough of Sutton,26/04/2018,1257712,(9.25), GRO HM PASSPORT OFFICE,REFUND FROM PASSPORT OFFICE,Peoples Services Directorate,Personal Requisites,F106,
http://opendatacommunities.org/id/london-borough-council/sutton,London Borough of Sutton,09/05/2018,1257712,20.00 , LBSUTTON,BIRTH CERT - LB SUTTON,Peoples Services Directorate,Personal Requisites,F106,
http://opendatacommunities.org/id/london-borough-council/sutton,London Borough of Sutton,09/05/2018,1257712,20.00 , LBSUTTON,BIRTH CERT - LB SUTTON.PDF,Peoples Services Directorate,Personal Requisites,F106,
http://opendatacommunities.org/id/london-borough-council/sutton,London Borough of Sutton,01/05/2018,1257712,10.00 , LBSUTTON,BIRTH CERTS,Peoples Services Directorate,Personal Requisites,F106,
http://opendatacommunities.org/id/london-borough-council/sutton,London Borough of Sutton,01/05/2018,1257712,10.00 , LBSUTTON,10.00 - F106 0311 9999 - BIRTH CERTS,Peoples Services Directorate,Personal Requisites,F106,
http://opendatacommunities.org/id/london-borough-council/sutton,London Borough of Sutton,17/05/2018,1257712,140.83 , HOLIDAY INNS,169 - F150 0311 9999 LAC REVIEW ACCOMODATION (CLIENT),Peoples Services Directorate,Provisions - General,F150,
http://opendatacommunities.org/id/london-borough-council/sutton,London Borough of Sutton,17/05/2018,1257712,140.83 , HOLIDAY INNS,LAC REVIEW ACCOMODATION (STAFF),Peoples Services Directorate,Provisions - General,F150,
http://opendatacommunities.org/id/london-borough-council/sutton,London Borough of Sutton,30/04/2018,1257712,(11.00), BROMLEY COUNCIL -INT,REFUND FOR BIRTH CERT,Peoples Services Directorate,Payments Under the Child Care Act 1980,H210,
http://opendatacommunities.org/id/london-borough-council/sutton,London Borough of Sutton,30/04/2018,1257712,10.00 , HAMPSHIRE COUNTY COUNC,BIRTH CERTIFICATE PURCHASE HAMPSHIRE - 30.04.2018,Peoples Services Directorate,Payments Under the Child Care Act 1980,H210,
http://opendatacommunities.org/id/london-borough-council/sutton,London Borough of Sutton,03/05/2018,1257712,37.68 , AMFBOWLING.CO.UK,BOWLING FOR LOOKED AFTER CHILD,Peoples Services Directorate,C.C.A Travel & Subsistance,H212,
http://opendatacommunities.org/id/london-borough-council/sutton,London Borough of Sutton,09/05/2018,1257712,111.58 , TRAINLINE.COM LTD,MONTHLY TRAVELCARD,Peoples Services Directorate,C.C.A Travel & Subsistance,H212,
http://opendatacommunities.org/id/london-borough-council/sutton,London Borough of Sutton,14/05/2018,1257712,133.33 , WM MORRISONS,SPLIT - H213 0311 9999 (16.67%),Peoples Services Directorate,C.C.A Food & Clothing,H213,
http://opendatacommunities.org/id/london-borough-council/sutton,London Borough of Sutton,01/05/2018,1257712,82.50 , WWW.ANYVAN.COM,COURIER,Peoples Services Directorate,Hired Peoples Transport (Children),E072,
http://opendatacommunities.org/id/london-borough-council/sutton,London Borough of Sutton,14/05/2018,1257712,133.33 , WM MORRISONS,SPLIT - H213 0312 9999 (16.67%),Peoples Services Directorate,C.C.A Food & Clothing,H213,
http://opendatacommunities.org/id/london-borough-council/sutton,London Borough of Sutton,17/05/2018,1257712,477.50 , TRAVELODGE,TRAVEL LODGE FOR CLIENT,Peoples Services Directorate,C.C.A Rent & Utilities,H211,
http://opendatacommunities.org/id/london-borough-council/sutton,London Borough of Sutton,30/04/2018,1257712,245.00 , HOLIDAY INNS,EMERGENCY ACCOMMODATION,Peoples Services Directorate,C.C.A Rent & Utilities,H211,
http://opendatacommunities.org/id/london-borough-council/sutton,London Borough of Sutton,26/04/2018,1257712,486.67 , TRAVELODGE,CROYDON TRAVEL LODGE FOR CLIENT - NRPF,Peoples Services Directorate,C.C.A Rent & Utilities,H211,
http://opendatacommunities.org/id/london-borough-council/sutton,London Borough of Sutton,09/05/2018,1257712,481.33 , TRAVELODGE,577.60 - H211 0316 9999 - OKAFOR TRAVELODGE EXTENSION NRPF,Peoples Services Directorate,C.C.A Rent & Utilities,H211,
http://opendatacommunities.org/id/london-borough-council/sutton,London Borough of Sutton,17/05/2018,1257712,65.00 , TRAVELODGE,TRAVELODGE FOR CLIENT,Peoples Services Directorate,C.C.A Rent & Utilities,H211,
http://opendatacommunities.org/id/london-borough-council/sutton,London Borough of Sutton,14/05/2018,1257712,133.33 , WM MORRISONS,SPLIT - H213 0318 9999 (16.67%),Peoples Services Directorate,C.C.A Food & Clothing,H213,
http://opendatacommunities.org/id/london-borough-council/sutton,London Borough of Sutton,17/05/2018,1257712,149.17 , CHESSINGTON WORLD,ANNUAL MERLIN PASS =- CORPORATE PARENTING,Peoples Services Directorate,Personal Requisites,F106,
http://opendatacommunities.org/id/london-borough-council/sutton,London Borough of Sutton,17/05/2018,1257712,9.25 , GRO HM PASSPORT OFFICE,APPLICATION,Peoples Services Directorate,Payments Under the Child Care Act 1980,H210,
http://opendatacommunities.org/id/london-borough-council/sutton,London Borough of Sutton,17/05/2018,1257712,110.00 , eb  missing and child,county line training - staff,Peoples Services Directorate,Training - Course Fees,A520,
http://opendatacommunities.org/id/london-borough-council/sutton,London Borough of Sutton,25/05/2018,1257712,133.32 , FLYBEEXGZ EXGZ8G,159.98 - A530 0330 9999 - FLYBE - FLIGHT,Peoples Services Directorate,Travelling and Subsistence Allowances,A530,
http://opendatacommunities.org/id/london-borough-council/sutton,London Borough of Sutton,10/05/2018,1257712,14.00 , NEW SOUTHERN RAILW,OYSTER TOP UP,"Environment, Housing & Regeneration Directorate",Travelling and Subsistence Allowances,A530,
http://opendatacommunities.org/id/london-borough-council/sutton,London Borough of Sutton,20/05/2018,1257712,68.98 , AMAZON UK MARKETPLACE,HARD DRIVE FOR PARKING REPORTS,"Environment, Housing & Regeneration Directorate",Other Equipment - Purchase,F015,
http://opendatacommunities.org/id/london-borough-council/sutton,London Borough of Sutton,13/05/2018,1257712,84.48 , AMAZON UK MARKETPLACE,PORTABLE DVD PLAYER (PARKING),"Environment, Housing & Regeneration Directorate",Other Equipment - Purchase,F015,
http://opendatacommunities.org/id/london-borough-council/sutton,London Borough of Sutton,11/05/2018,1257712,110.00 , INDIGO PARK SVS UK - L,TEST PAYMENT FOR WEB PAGE UPDATE,"Environment, Housing & Regeneration Directorate",Fees - Other,F299,
http://opendatacommunities.org/id/london-borough-council/sutton,London Borough of Sutton,21/05/2018,1257712,28.12 , AMAZON UK MARKETPLACE,extension leads,Chief Executive's Directorate,Repairs to Administrative Equipment,F030,
http://opendatacommunities.org/id/london-borough-council/sutton,London Borough of Sutton,21/05/2018,1257712,315.00 , WE BRAND IT,display stands,Chief Executive's Directorate,Repairs to Administrative Equipment,F030,
http://opendatacommunities.org/id/london-borough-council/sutton,London Borough of Sutton,09/05/2018,1257712,6.66 , AMAZON PRIME,Prime membership,Chief Executive's Directorate,Repairs to Administrative Equipment,F030,
http://opendatacommunities.org/id/london-borough-council/sutton,London Borough of Sutton,09/05/2018,1257712,22.45 , AMAZON UK MARKETPLACE,Large Picture Hanging Strips,Chief Executive's Directorate,Repairs to Administrative Equipment,F030,
http://opendatacommunities.org/id/london-borough-council/sutton,London Borough of Sutton,09/05/2018,1257712,48.45 , AMAZON UK MARKETPLACE,"12 X COMMAND 17206 LARGE PICTURE HANGING STRIPS, 4 PAIRS",Chief Executive's Directorate,Repairs to Administrative Equipment,F030,
http://opendatacommunities.org/id/london-borough-council/sutton,London Borough of Sutton,30/04/2018,1257712,224.96 , WWW.JOHNLEWIS.COM,TOP UP OYSTER CARD USED BY STAFF FOR MEETINGS IN LONDON,Resources Directorate,Travelling and Subsistence Allowances,A530,
http://opendatacommunities.org/id/london-borough-council/sutton,London Borough of Sutton,17/05/2018,1257712,9.50 , WM MORRISONS,russettings following relocation,Resources Directorate,Miscellaneous Expenses,F620,
http://opendatacommunities.org/id/london-borough-council/sutton,London Borough of Sutton,15/05/2018,1257712,27.81 , WM MORRISONS,russettings following relocation,Resources Directorate,Miscellaneous Expenses,F620,
http://opendatacommunities.org/id/london-borough-council/sutton,London Borough of Sutton,26/04/2018,1257712,20.00 , LUL TICKET MACHINE,NEW SPEAKER FOR REFURBISHED MARRIAGE CEREMONY ROOM,Resources Directorate,Miscellaneous Expenses,F620,
http://opendatacommunities.org/id/london-borough-council/sutton,London Borough of Sutton,24/05/2018,1257712,127.78 , VISTAPRINT,CHILDREN'S STICKERS FOR WHITEHALL HERITAGE LOTTERY PROJECT,Chief Executive's Directorate,Records and Casettes,F007,
http://opendatacommunities.org/id/london-borough-council/sutton,London Borough of Sutton,24/05/2018,1257712,4.76 , AMAZON UK MARKETPLACE,MAGNIFYING GLASSES FOR KIDS PACKS WHITEHALL LOTTERY PROJECT,Chief Executive's Directorate,Records and Casettes,F007,
http://opendatacommunities.org/id/london-borough-council/sutton,London Borough of Sutton,23/05/2018,1257712,14.19 , AMAZON UK MARKETPLACE,DRESSING UP CLOTHES FOR WHITEHALL HISTORIC HOUSE LOTTERY PROJECT,Chief Executive's Directorate,Records and Casettes,F007,
http://opendatacommunities.org/id/london-borough-council/sutton,London Borough of Sutton,23/05/2018,1257712,29.49 , PAYPAL  COSTUMEBOX,DRESSING UP CLOTHES WHITEHALL HISTORIC HOUSE LOTTERY PROJECT,Chief Executive's Directorate,Records and Casettes,F007,
http://opendatacommunities.org/id/london-borough-council/sutton,London Borough of Sutton,01/05/2018,1257712,249.00 , AMAZON UK MARKETPLACE,HANDHELD RECORDER FOR REMINISCENCE WORK,Chief Executive's Directorate,Records and Casettes,F007,
http://opendatacommunities.org/id/london-borough-council/sutton,London Borough of Sutton,13/05/2018,1257712,20.00 , OYSTER AUTOTOPUP,OYSTER CARD TOP UP,HRA,General Office Expenses,F235,
http://opendatacommunities.org/id/london-borough-council/sutton,London Borough of Sutton,27/04/2018,1257712,20.00 , OYSTER AUTOTOPUP,OYSTER CARD TOP UP,HRA,General Office Expenses,F235,
http://opendatacommunities.org/id/london-borough-council/sutton,London Borough of Sutton,12/05/2018,1257712,20.00 , OYSTER AUTOTOPUP,OYSTER CARD TOP UP,"Environment, Housing & Regeneration Directorate",General Office Expenses,F235,
http://opendatacommunities.org/id/london-borough-council/sutton,London Borough of Sutton,11/05/2018,1257712,20.00 , OYSTER AUTOTOPUP,OYSTER CARD TOP UP,"Environment, Housing & Regeneration Directorate",General Office Expenses,F235,
http://opendatacommunities.org/id/london-borough-council/sutton,London Borough of Sutton,02/05/2018,1257712,20.00 , OYSTER RENEW WEB,OYSTER CARD TOP UP,"Environment, Housing & Regeneration Directorate",General Office Expenses,F235,
http://opendatacommunities.org/id/london-borough-council/sutton,London Borough of Sutton,RV 1250972 26/02/2018,1258069,(10.00), OYSTER RENEW WEB,TEAM OYSTER,Chief Executive's Directorate,Travelling and Subsistence Allowances,A530,
http://opendatacommunities.org/id/london-borough-council/sutton,London Borough of Sutton,RV 1250972 26/02/2018,1258069,(10.00), OYSTER RENEW WEB,TEAM OYSTER,Chief Executive's Directorate,Travelling and Subsistence Allowances,A530,
http://opendatacommunities.org/id/london-borough-council/sutton,London Borough of Sutton,26/05/2018,1257712,20.00 , OYSTER AUTOTOPUP,TEAM OYSTER,Chief Executive's Directorate,Travelling and Subsistence Allowances,A530,
http://opendatacommunities.org/id/london-borough-council/sutton,London Borough of Sutton,21/05/2018,1257712,90.80 , NEW SOUTHERN RAILW,TEAM OYSTER,Chief Executive's Directorate,Travelling and Subsistence Allowances,A530,
http://opendatacommunities.org/id/london-borough-council/sutton,London Borough of Sutton,19/05/2018,1257712,20.00 , OYSTER AUTOTOPUP,LARIA CONFERENCE TRAIN TRAVEL,Chief Executive's Directorate,Travelling and Subsistence Allowances,A530,
http://opendatacommunities.org/id/london-borough-council/sutton,London Borough of Sutton,18/05/2018,1257712,20.00 , OYSTER AUTOTOPUP,TEAM OYSTER,Chief Executive's Directorate,Travelling and Subsistence Allowances,A530,
http://opendatacommunities.org/id/london-borough-council/sutton,London Borough of Sutton,14/05/2018,1257712,27.54 , EB  SEMINAR PROCUREMEN,TRAINING SEMILAR,Chief Executive's Directorate,Travelling and Subsistence Allowances,A530,
http://opendatacommunities.org/id/london-borough-council/sutton,London Borough of Sutton,29/04/2018,1257712,20.00 , OYSTER AUTOTOPUP,TEAM OYSTER,Chief Executive's Directorate,Travelling and Subsistence Allowances,A530,
http://opendatacommunities.org/id/london-borough-council/sutton,London Borough of Sutton,28/04/2018,1257712,20.00 , OYSTER AUTOTOPUP,TEAM OYSTER,Chief Executive's Directorate,Travelling and Subsistence Allowances,A530,
http://opendatacommunities.org/id/london-borough-council/sutton,London Borough of Sutton,15/05/2018,1257712,7.11 , MAILCHIMP    MONTHLY,WEB HOSTING,Chief Executive's Directorate,Fees - Computer Software,F384,
http://opendatacommunities.org/id/london-borough-council/sutton,London Borough of Sutton,14/05/2018,1257712,258.46 , MAILCHIMP    MONTHLY,WEB HOSTING,Chief Executive's Directorate,Fees - Computer Software,F384,
http://opendatacommunities.org/id/london-borough-council/sutton,London Borough of Sutton,30/04/2018,1257712,1.00 , CALENDLY LLC,CALENDAR CREATOR FOR NEW MEMBERS INDUCTION,Resources Directorate,IT Licences,F385,
http://opendatacommunities.org/id/london-borough-council/sutton,London Borough of Sutton,27/04/2018,1257712,50.00 , CALENDLY LLC,SPLIT - PREMIUM MONTHLY (137.48%),Resources Directorate,IT Licences,F385,
http://opendatacommunities.org/id/london-borough-council/sutton,London Borough of Sutton,27/04/2018,1257712,(13.63), CALENDLY LLC,BALANCING ENTRY AMOUNT (-112.44%),Resources Directorate,IT Licences,F385,
http://opendatacommunities.org/id/london-borough-council/sutton,London Borough of Sutton,09/05/2018,1257712,249.95 , EB  SEMINAR DEVELOPING,SEMINAR: DEVELOPING POLITICAL AWARENESS AND SENSITIVITY FOR OFFICERS,Chief Executive's Directorate,Training - Course Fees,A520,
http://opendatacommunities.org/id/london-borough-council/sutton,London Borough of Sutton,14/05/2018,1257712,3.95 , AMAZON SVCS EU-UK AMAZ,EXPANDING ENGAGEMENT FILE FOR CLLR,Resources Directorate,General Office Expenses,F235,
http://opendatacommunities.org/id/london-borough-council/sutton,London Borough of Sutton,11/05/2018,1257712,22.87 , WILKO RETAIL LIMIT,PHOTO FRAMES FOR MAYORAL PICTURES,Resources Directorate,General Office Expenses,F235,
http://opendatacommunities.org/id/london-borough-council/sutton,London Borough of Sutton,11/05/2018,1257712,6.93 , ROBERT DYAS HOLDNG LTD,CLEANING PRODUCTS FOR THE MAYOR'S KITCHEN AND PARLOUR,Resources Directorate,General Office Expenses,F235,
http://opendatacommunities.org/id/london-borough-council/sutton,London Borough of Sutton,17/05/2018,1257712,96.25 , CHRISTINES FASH IN FLO,3 BOUQUETS WHICH WERE PRESENTED TO THE DEPUTY MAYOR AND CONSORTS AT ANNUAL MAYOR MAKING ON 21 MAY 2018,Resources Directorate,Hospitality (VAT not Recoverable),F325,
http://opendatacommunities.org/id/london-borough-council/sutton,London Borough of Sutton,16/05/2018,1257712,634.63 , MAJESTIC WINE,WINE AND GLASSES FOR ANNUAL MAYOR MAKING RECEPTION 21.5.18,Resources Directorate,Hospitality (VAT not Recoverable),F325,
http://opendatacommunities.org/id/london-borough-council/sutton,London Borough of Sutton,23/05/2018,1257712,26.00 , SHOECARE,4 REPLACEMENT LOCKER KEYS FOR COUNCILLORS,Resources Directorate,Materials - General,F100,
http://opendatacommunities.org/id/london-borough-council/sutton,London Borough of Sutton,26/04/2018,1257712,20.00 , OYSTER AUTOTOPUP,OYSTER AUTO TOP UP  FOR CLLR,Resources Directorate,Members Expenses - Travel and Subsistence,F401,
http://opendatacommunities.org/id/london-borough-council/sutton,London Borough of Sutton,14/05/2018,1257712,35.00 , WWW.ICO.GOV.UK,ICO RENEWAL FOR COUNCILLOR,Resources Directorate,Subscriptions - General,F450,
http://opendatacommunities.org/id/london-borough-council/sutton,London Borough of Sutton,02/05/2018,1257712,245.00 , WWW.WESTMINSTER-BRIEFI,CONFERENCE REDUCING VIOLENT CRIME (MT),"Environment, Housing & Regeneration Directorate",Training - Course Fees,A520,
http://opendatacommunities.org/id/london-borough-council/sutton,London Borough of Sutton,27/05/2018,1257712,20.00 , OYSTER AUTOTOPUP,OYSTER TOP UP,Resources Directorate,Travelling and Subsistence Allowances,A530,
http://opendatacommunities.org/id/london-borough-council/sutton,London Borough of Sutton,23/05/2018,1257712,20.00 , OYSTER AUTOTOPUP,OYSTER TOP UP,Resources Directorate,Travelling and Subsistence Allowances,A530,
http://opendatacommunities.org/id/london-borough-council/sutton,London Borough of Sutton,18/05/2018,1257712,20.00 , OYSTER AUTOTOPUP,OYSTER TOP UP,Resources Directorate,Travelling and Subsistence Allowances,A530,
http://opendatacommunities.org/id/london-borough-council/sutton,London Borough of Sutton,16/05/2018,1257712,20.00 , OYSTER AUTOTOPUP,OYSTER TOP UP,Resources Directorate,Travelling and Subsistence Allowances,A530,
http://opendatacommunities.org/id/london-borough-council/sutton,London Borough of Sutton,04/05/2018,1257712,20.00 , OYSTER AUTOTOPUP,OYSTER TOP UP,Resources Directorate,Travelling and Subsistence Allowances,A530,
http://opendatacommunities.org/id/london-borough-council/sutton,London Borough of Sutton,17/05/2018,1257712,(115.00), WWW.ARGOS.CO.UK,REFUND,Resources Directorate,Fees - Computer Software,F384,
http://opendatacommunities.org/id/london-borough-council/sutton,London Borough of Sutton,25/05/2018,1257712,166.66 , WWW.ARGOS.CO.UK,ARGOS 199.99,Resources Directorate,Grants,F473,
http://opendatacommunities.org/id/london-borough-council/sutton,London Borough of Sutton,22/05/2018,1257712,354.15 , WWW.ARGOS.CO.UK,ARGOS PURCHASE,Resources Directorate,Grants,F473,
http://opendatacommunities.org/id/london-borough-council/sutton,London Borough of Sutton,03/05/2018,1257712,120.82 , WWW.ARGOS.CO.UK,ARGOS PURCHASE TOGLACI FRIDGE/FREEZER,Resources Directorate,Grants,F473,
http://opendatacommunities.org/id/london-borough-council/sutton,London Borough of Sutton,02/05/2018,1257712,(141.66), WWW.ARGOS.CO.UK,REFUND OF PURCHASE,Resources Directorate,Grants,F473,
http://opendatacommunities.org/id/london-borough-council/sutton,London Borough of Sutton,21/05/2018,1257712,120.82 , WWW.ARGOS.CO.UK,PURCHASE OF FRIDGE FREEZER FOR CRISIS GRANT,Resources Directorate,Grants,F473,
http://opendatacommunities.org/id/london-borough-council/sutton,London Borough of Sutton,01/05/2018,1257712,179.16 , WWW.ARGOS.CO.UK,PURCHASE OF WASHING MACHINE FOR CRISIS GRANT,Resources Directorate,Grants,F473,
http://opendatacommunities.org/id/london-borough-council/sutton,London Borough of Sutton,28/04/2018,1257712,33.33 , OYSTER BUS AUTOTOP,OYSTER TOP UP FOR REVENUES STAFF TRAVEL,Resources Directorate,Travelling and Subsistence Allowances,A530,
http://opendatacommunities.org/id/london-borough-council/sutton,London Borough of Sutton,01/05/2018,1257712,30.00 , WWW.GOV.UK,3 X PROBATE CERTIFICATES,Resources Directorate,General Office Expenses,F235,
http://opendatacommunities.org/id/london-borough-council/sutton,London Borough of Sutton,08/05/2018,1257712,16.67 , WWW.GOV.UK,2 X PROBATE CERTIFICATE,Resources Directorate,General Office Expenses,F235,
http://opendatacommunities.org/id/london-borough-council/sutton,London Borough of Sutton,10/05/2018,1257712,30.00 , WWW.VEOLIA.COM,TEST BULKY WASTE COLLECTION PAYMENT 1,Resources Directorate,General Office Expenses,F235,
http://opendatacommunities.org/id/london-borough-council/sutton,London Borough of Sutton,10/05/2018,1257712,30.00 , WWW.VEOLIA.COM,TEST BULKY WASTE COLLECTION PAYMENT 3,Resources Directorate,General Office Expenses,F235,
http://opendatacommunities.org/id/london-borough-council/sutton,London Borough of Sutton,10/05/2018,1257712,30.00 , WWW.VEOLIA.COM,TEST BULKY WASTE COLLECTION PAYMENT 2,Resources Directorate,General Office Expenses,F235,
http://opendatacommunities.org/id/london-borough-council/sutton,London Borough of Sutton,11/05/2018,1257712,347.49 , EBUYER (UK) LTD,ACCESS TO WORK REQUESTED SCREEN PURCHASE,Resources Directorate,Purchase of IT Equipment,F380,
http://opendatacommunities.org/id/london-borough-council/sutton,London Borough of Sutton,14/05/2018,1257712,133.35 , WM MORRISONS,SPLIT - H213 6423 9999 (16.65%),Peoples Services Directorate,C.C.A Food & Clothing,H213,
http://opendatacommunities.org/id/london-borough-council/sutton,London Borough of Sutton,03/05/2018,1257712,266.65 , CURRYS ONLINE,FRIDGE FOR ADULT CLIENT,Peoples Services Directorate,Client Care/Assistance,H301,
http://opendatacommunities.org/id/london-borough-council/sutton,London Borough of Sutton,15/05/2018,1257712,10.00 , WWW.GOV.UK,WILL AND PROBATE REQUEST COSTS,Peoples Services Directorate,Fees - Other,F299,
